bitfinex-derivatives/quotes_BTCF0:USTF0_20250614
["timestamp","ask_amount","ask_price","bid_price","bid_amount"]
[1749859937286,1.96633111,106040.0,106030.0,0.00413835]
[1749859937491,1.96633111,106040.0,106030.0,0.01771811]
[1749859937785,0.89228404,106040.0,106030.0,0.20621659]
[1749859937983,0.89228404,106040.0,106030.0,0.19268125]
[1749859938182,0.70352404,106040.0,106030.0,0.26836688]
[1749859938388,0.70352404,106040.0,106030.0,0.25498125]
[1749859938685,1.64634404,106040.0,106030.0,0.2683004]
[1749859938887,1.64634404,106040.0,106030.0,0.25498125]
[1749859939088,0.67042404,106040.0,106030.0,0.26829192]
[1749859939393,1.64634404,106040.0,106030.0,0.26829192]
[1749859939579,0.85918404,106040.0,106030.0,0.26829192]
[1749859939784,0.85918404,106040.0,106030.0,0.26830859]
[1749859939979,1.04770914,106040.0,106030.0,0.25498125]
[1749859940185,1.08060914,106040.0,106030.0,0.26828229]
[1749859940479,1.22060914,106040.0,106030.0,0.20598229]
[1749859940686,1.22060914,106040.0,106030.0,0.20602935]
[1749859940987,1.22060914,106040.0,106030.0,0.2060322]
[1749859941287,1.22060914,106040.0,106030.0,0.19268125]
[1749859941595,1.22060914,106040.0,106030.0,0.2061037]
[1749859941890,1.22060914,106040.0,106030.0,0.20610839]
[1749859942090,1.22060914,106040.0,106030.0,0.19268125]
[1749859942288,1.22060914,106040.0,106030.0,0.20611225]
[1749859942488,1.22060914,106040.0,106030.0,0.20611404]
[1749859942991,1.22060914,106040.0,106030.0,0.20608761]
[1749859943392,1.22060914,106040.0,106030.0,0.20601844]
[1749859944693,1.22060914,106040.0,106030.0,0.20602889]
[1749859944988,1.22060914,106040.0,106030.0,0.19268125]
[1749859945694,1.22060914,106040.0,106030.0,0.20602513]
[1749859945894,1.22060914,106040.0,106030.0,0.20603623]
[1749859946195,1.22060914,106040.0,106030.0,0.20603503]
[1749859946387,1.22060914,106040.0,106030.0,0.20602747]
[1749859946588,1.22060914,106040.0,106030.0,0.20602777]
[1749859946794,1.03184914,106040.0,106030.0,0.20602784]
[1749859946990,2.00796914,106040.0,106030.0,0.21938174]
[1749859947192,2.00796914,106040.0,106030.0,0.20603148]
[1749859947593,2.00796914,106040.0,106030.0,0.21943784]
[1749859947895,1.03184914,106040.0,106030.0,0.21943784]
[1749859948193,2.00780914,106040.0,106030.0,0.2194304]
[1749859948390,2.00780914,106040.0,106030.0,0.21943575]
[1749859948891,2.00780914,106040.0,106030.0,0.20603148]
[1749859949094,2.00780914,106040.0,106030.0,0.21943275]
[1749859949289,2.00780914,106040.0,106030.0,0.21943141]
[1749859949489,2.00780914,106040.0,106030.0,0.21942814]
[1749859949697,2.00780914,106040.0,106030.0,0.21943295]
[1749859949993,2.00780914,106040.0,106030.0,0.21943293]
[1749859950195,2.00780914,106040.0,106030.0,0.21946219]
[1749859950394,2.00780914,106040.0,106030.0,0.20603148]
[1749859950692,2.12557111,106040.0,106030.0,0.2194701]
[1749859950896,2.12557111,106040.0,106030.0,0.21947148]
[1749859951096,2.12557111,106040.0,106030.0,0.21947147]
[1749859952394,2.12557111,106040.0,106030.0,0.21947337]
[1749859952588,2.12557111,106040.0,106030.0,0.20603148]
[1749859952788,2.12557111,106040.0,106030.0,0.21948055]
[1749859952985,2.12557111,106040.0,106030.0,0.21947215]
[1749859953293,2.12557111,106040.0,106030.0,0.21946941]
[1749859953497,2.12557111,106040.0,106030.0,0.21946402]
[1749859954095,1.82119111,106040.0,106030.0,0.21945147]
[1749859954394,1.82119111,106040.0,106030.0,0.28215145]
[1749859954591,1.82119111,106040.0,106030.0,0.31494245]
[1749859954904,2.09119111,106040.0,106030.0,0.30153148]
[1749859955291,2.09119111,106040.0,106030.0,0.31494242]
[1749859955496,2.09119111,106040.0,106030.0,0.31494241]
[1749859956198,2.09119111,106040.0,106030.0,0.31494178]
[1749859956395,2.09119111,106040.0,106030.0,0.30153148]
[1749859956586,2.09119111,106040.0,106030.0,0.31494431]
[1749859956791,2.09119111,106040.0,106030.0,0.30153148]
[1749859957096,2.09119111,106040.0,106030.0,0.3149443]
[1749859957898,2.09119111,106040.0,106030.0,0.31494373]
[1749859958100,2.09119111,106040.0,106030.0,0.31494372]
[1749859958299,2.09119111,106040.0,106030.0,0.3149437]
[1749859958501,2.09119111,106040.0,106030.0,0.30153148]
[1749859958797,2.09119111,106040.0,106030.0,0.31494373]
[1749859959189,2.09119111,106040.0,106030.0,0.21944372]
[1749859959190,1.11651111,106040.0,106030.0,0.21944372]
[1749859959397,2.13855111,106040.0,106030.0,0.20603148]
[1749859959693,2.13855111,106040.0,106030.0,0.03090144]
[1749859959997,2.13855111,106040.0,106030.0,0.21944624]
[1749859960200,2.13855111,106040.0,106030.0,0.21945297]
[1749859960500,2.13855111,106040.0,106030.0,0.21945479]
[1749859961105,2.02078914,106040.0,106030.0,0.20603148]
[1749859961303,2.13862058,106040.0,106030.0,0.21944894]
[1749859962004,2.13862058,106040.0,106030.0,0.21944642]
[1749859962298,2.13862058,106040.0,106030.0,0.21945979]
[1749859963002,2.13862058,106040.0,106030.0,0.03093803]
[1749859963199,2.13862058,106040.0,106030.0,0.21948983]
[1749859963695,2.13862058,106040.0,106030.0,0.03094708]
[1749859963997,2.02078914,106040.0,106030.0,0.03101901]
[1749859964194,2.02078914,106040.0,106030.0,0.01748858]
[1749859964195,2.1679916,106040.0,106030.0,0.01748858]
[1749859964397,2.1679916,106040.0,106030.0,0.03105735]
[1749859964597,2.1679916,106040.0,106030.0,0.03105777]
[1749859964796,2.1679916,106040.0,106030.0,0.03106092]
[1749859965001,2.1679916,106040.0,106030.0,0.03106008]
[1749859965198,2.1679916,106040.0,106030.0,0.03106009]
[1749859965395,2.1679916,106040.0,106030.0,0.03106008]
[1749859965803,2.1679916,106040.0,106030.0,0.03107774]
[1749859966104,2.1679916,106040.0,106030.0,0.03107609]
[1749859966503,2.1679916,106040.0,106030.0,0.0310797]
[1749859966804,2.1679916,106040.0,106030.0,0.01748858]
[1749859967005,2.1679916,106040.0,106030.0,0.03106398]
[1749859967303,2.1679916,106040.0,106030.0,0.03107151]
[1749859967497,2.1679916,106040.0,106030.0,0.03110046]
[1749859967901,2.1679916,106040.0,106030.0,0.03110081]
[1749859968204,2.1679916,106040.0,106030.0,0.01748858]
[1749859968503,2.1679916,106040.0,106030.0,0.03108762]
[1749859968702,2.1679916,106040.0,106030.0,0.03108763]
[1749859969305,2.13860351,106040.0,106030.0,0.03108264]
[1749859969501,2.02078914,106040.0,106030.0,0.01748858]
[1749859969701,2.1386004,106040.0,106030.0,0.03106585]
[1749859969905,2.1386004,106040.0,106030.0,0.03105752]
[1749859970105,2.02078914,106040.0,106030.0,0.01748858]
[1749859970402,2.02078914,106040.0,106030.0,0.0310758]
[1749859970606,2.13860065,106040.0,106030.0,0.0310758]
[1749859970806,2.13860065,106040.0,106030.0,0.03105957]
[1749859970999,2.13860065,106040.0,106030.0,0.0310494]
[1749859971200,2.13860065,106040.0,106030.0,0.03104315]
[1749859971401,2.13860065,106040.0,106030.0,0.03104079]
[1749859971902,2.13860065,106040.0,106030.0,0.03106958]
[1749859972104,2.13860065,106040.0,106030.0,0.03107208]
[1749859972305,2.13860065,106040.0,106030.0,0.03106435]
[1749859972709,2.13860065,106040.0,106030.0,0.03105697]
[1749859973208,2.02078914,106040.0,106030.0,0.01748858]
[1749859973410,2.02078914,106040.0,106030.0,0.03080143]
[1749859973604,2.13858823,106040.0,106030.0,0.01748858]
[1749859974006,2.13858823,106040.0,106030.0,0.0440825]
[1749859974309,2.13858823,106040.0,106030.0,0.0307807]
[1749859974608,2.13858823,106040.0,106030.0,0.04406183]
[1749859975009,2.13858823,106040.0,106030.0,0.04407432]
[1749859975316,2.13858823,106040.0,106030.0,0.044069]
[1749859975612,2.13858823,106040.0,106030.0,0.0440723]
[1749859976000,2.13858823,106040.0,106030.0,0.04407211]
[1749859976196,2.13858823,106040.0,106030.0,0.04406702]
[1749859976397,2.02078914,106040.0,106030.0,0.0307807]
[1749859976605,2.02078914,106040.0,106030.0,0.04411939]
[1749859976810,2.02078914,106040.0,106030.0,0.04411586]
[1749859977016,2.1679916,106040.0,106030.0,0.04412429]
[1749859977302,2.1679916,106040.0,106030.0,0.0307807]
[1749859977609,2.1679916,106040.0,106030.0,0.04407999]
[1749859977802,2.1679916,106040.0,106030.0,0.04408348]
[1749859978008,2.1679916,106040.0,106030.0,0.04409224]
[1749859978211,2.1679916,106040.0,106030.0,0.04410085]
[1749859978403,2.1679916,106040.0,106030.0,0.04410519]
[1749859978707,2.1679916,106040.0,106030.0,0.04408154]
[1749859978913,2.1679916,106040.0,106030.0,0.04408185]
[1749859979209,2.1679916,106040.0,106030.0,0.0307807]
[1749859979503,2.02078914,106040.0,106030.0,0.04408419]
[1749859979706,2.02078914,106040.0,106030.0,0.0307807]
[1749859979900,2.02078914,106040.0,106030.0,0.04407639]
[1749859979901,2.13858291,106040.0,106030.0,0.04407639]
[1749859980103,2.13858306,106040.0,106030.0,0.0307807]
[1749859980303,2.13858306,106040.0,106030.0,0.04407711]
[1749859980703,2.13858306,106040.0,106030.0,0.0307807]
[1749859981008,2.13858306,106040.0,106030.0,0.04409464]
[1749859981204,2.13858306,106040.0,106030.0,0.0307807]
[1749859981409,2.13858306,106040.0,106030.0,0.04410021]
[1749859981610,2.13858306,106040.0,106030.0,0.0307807]
[1749859982306,2.13858306,106040.0,106030.0,0.04410892]
[1749859982610,2.02078914,106040.0,106030.0,0.0307807]
[1749859982808,2.02078914,106040.0,106030.0,0.04413213]
[1749859983009,2.13858105,106040.0,106030.0,0.0441198]
[1749859983710,2.02078914,106040.0,106030.0,0.0440987]
[1749859984007,2.02078914,106040.0,106030.0,0.04410011]
[1749859984217,2.02078914,106040.0,106030.0,0.04410002]
[1749859984605,2.01766914,106040.0,106030.0,0.04410002]
[1749859984806,2.01766914,106040.0,106030.0,0.0307807]
[1749859985011,2.1648716,106040.0,106030.0,0.04407556]
[1749859985410,2.01766914,106040.0,106030.0,0.04409886]
[1749859985610,2.01766914,106040.0,106030.0,0.04409823]
[1749859985911,2.1648716,106040.0,106030.0,0.04409822]
[1749859986213,2.1648716,106040.0,106030.0,0.04409837]
[1749859986607,2.1648716,106040.0,106030.0,0.04411361]
[1749859986807,2.1648716,106040.0,106030.0,0.04414422]
[1749859987009,2.1648716,106040.0,106030.0,0.04413916]
[1749859987312,2.1648716,106040.0,106030.0,0.0307807]
[1749859987508,2.1648716,106040.0,106030.0,0.04416588]
[1749859987713,2.1648716,106040.0,106030.0,0.0307807]
[1749859987911,2.1648716,106040.0,106030.0,0.04416464]
[1749859988110,2.1648716,106040.0,106030.0,0.0307807]
[1749859988512,2.1648716,106040.0,106030.0,0.0441732]
[1749859988715,2.1648716,106040.0,106030.0,0.04416742]
[1749859988908,2.1648716,106040.0,106030.0,0.04416789]
[1749859989113,2.1648716,106040.0,106030.0,0.04415864]
[1749859989312,2.1648716,106040.0,106030.0,0.04416157]
[1749859989910,2.1648716,106040.0,106030.0,0.0307807]
[1749859990111,2.1648716,106040.0,106030.0,0.04416909]
[1749859990414,2.1648716,106040.0,106030.0,0.04417357]
[1749859990614,2.1648716,106040.0,106030.0,0.04416023]
[1749859990917,2.1648716,106040.0,106030.0,0.04416021]
[1749859991119,2.1648716,106040.0,106030.0,0.04415976]
[1749859991320,2.1648716,106040.0,106030.0,0.0307807]
[1749859991911,2.1648716,106040.0,106030.0,0.04417349]
[1749859992317,2.1648716,106040.0,106030.0,0.0307807]
[1749859992515,2.1648716,106040.0,106030.0,0.04415376]
[1749859993713,2.1648716,106040.0,106030.0,0.04417292]
[1749859994111,2.1648716,106040.0,106030.0,0.0307807]
[1749859994313,2.1648716,106040.0,106030.0,0.04417348]
[1749859994625,2.1648716,106040.0,106030.0,0.0307807]
[1749859994824,2.1648716,106040.0,106030.0,0.04417352]
[1749859995119,2.1648716,106040.0,106030.0,0.04417348]
[1749859995323,2.1648716,106040.0,106030.0,0.04417346]
[1749859995623,2.1648716,106040.0,106030.0,0.04417334]
[1749859995825,2.1648716,106040.0,106030.0,0.0441816]
[1749859996532,2.1648716,106040.0,106030.0,0.04418276]
[1749859996722,2.1648716,106040.0,106030.0,0.04418283]
[1749859997019,2.22375259,106040.0,106030.0,0.04423528]
[1749859997218,1.25303259,106040.0,106030.0,0.0307807]
[1749859997428,1.25303259,106040.0,106030.0,0.0441727]
[1749859997629,2.22623259,106040.0,106030.0,0.0771727]
[1749859997928,2.22623259,106040.0,106030.0,0.07706911]
[1749859998127,2.22423259,106040.0,106030.0,0.07707129]
[1749859998429,2.3765933,106040.0,106030.0,0.07707099]
[1749859998637,2.3765933,106040.0,106030.0,0.07708143]
[1749859998822,2.17050985,106040.0,106030.0,0.07707871]
[1749859999021,2.17050985,106040.0,106030.0,0.07707683]
[1749859999330,2.17050985,106040.0,106030.0,0.07708516]
[1749859999524,2.17050985,106040.0,106030.0,0.07710237]
[1749859999718,2.17050985,106040.0,106030.0,0.04411955]
[1749860000428,2.17050985,106040.0,106020.0,0.0937]
[1749860000429,0.20729599,106030.0,106020.0,0.0937]
[1749860000733,1.73337599,106030.0,106020.0,0.0937]
[1749860001327,1.85125251,106030.0,106020.0,0.0937]
[1749860001526,1.85225251,106030.0,106020.0,0.0937]
[1749860002230,0.1885784,106010.0,106000.0,0.28000504]
[1749860002435,1.4474184,106010.0,106000.0,0.31276846]
[1749860003134,1.4474184,106010.0,106000.0,0.26561956]
[1749860003334,1.4474184,106010.0,106000.0,0.26961956]
[1749860003536,1.4474184,106010.0,106000.0,0.33301956]
[1749860004331,1.4474184,106010.0,106000.0,0.33501956]
[1749860006929,1.4474184,106010.0,106000.0,0.14642896]
[1749860007333,1.4474184,106010.0,106000.0,0.33502516]
[1749860008137,1.56529979,106010.0,106000.0,0.0683]
[1749860008435,1.56529979,106010.0,106000.0,0.0653]
[1749860008635,1.59849979,106010.0,106000.0,0.0653]
[1749860010132,1.59849979,106010.0,106000.0,0.0973]
[1749860012430,1.4806184,106010.0,106000.0,0.11065502]
[1749860012838,1.4806184,106010.0,106000.0,0.11065067]
[1749860013040,1.4806184,106010.0,106000.0,0.11065135]
[1749860013839,1.4806184,106010.0,106000.0,0.11066737]
[1749860014034,1.4806184,106010.0,106000.0,0.11067938]
[1749860014230,1.4806184,106010.0,106000.0,0.11067933]
[1749860014433,1.4806184,106010.0,106000.0,0.11066799]
[1749860014628,1.4806184,106010.0,106000.0,0.0973]
[1749860014833,1.4806184,106010.0,106000.0,0.11065121]
[1749860015038,1.4806184,106010.0,106000.0,0.0973]
[1749860015245,1.4806184,106010.0,106000.0,0.11064717]
[1749860015629,1.4806184,106010.0,106000.0,0.11067592]
[1749860015834,1.4806184,106010.0,106000.0,0.11065271]
[1749860016132,1.4806184,106010.0,106000.0,0.29928347]
[1749860016435,1.4806184,106010.0,106000.0,0.11068768]
[1749860016638,1.4806184,106010.0,106000.0,0.0973]
[1749860017144,1.4806184,106010.0,106000.0,0.12537563]
[1749860017344,1.4806184,106010.0,106000.0,0.12537828]
[1749860017535,1.4806184,106010.0,106000.0,0.1106814]
[1749860017842,1.4806184,106010.0,106000.0,0.30059308]
[1749860018241,1.4806184,106010.0,106000.0,0.29925822]
[1749860018439,1.4806184,106010.0,106000.0,0.31395572]
[1749860018737,2.2695384,106010.0,106000.0,0.30058918]
[1749860018941,2.2695384,106010.0,106000.0,0.2858962]
[1749860019138,2.2695384,106010.0,106000.0,0.30058611]
[1749860019335,2.2695384,106010.0,106000.0,0.11066808]
[1749860019643,2.2695384,106010.0,106000.0,0.29926428]
[1749860019941,2.2695384,106010.0,106000.0,0.31398472]
[1749860020142,2.2695384,106010.0,106000.0,0.29926813]
[1749860020331,2.2695384,106010.0,106000.0,0.31397826]
[1749860020535,1.2933784,106010.0,106000.0,0.30060587]
[1749860020735,2.2693384,106010.0,106000.0,0.31395591]
[1749860020932,2.2693384,106010.0,106000.0,0.30060566]
[1749860021142,2.2693384,106010.0,106000.0,0.2858962]
[1749860021438,2.2693384,106010.0,106000.0,0.31396813]
[1749860021639,2.2693384,106010.0,106000.0,0.31397381]
[1749860021835,2.2693384,106010.0,106000.0,0.2858962]
[1749860022040,2.2693384,106010.0,106000.0,0.30060576]
[1749860022242,2.2693384,106010.0,106000.0,0.30060572]
[1749860022431,2.2693384,106010.0,106000.0,0.12537347]
[1749860022638,2.2693384,106010.0,106000.0,0.06721182]
[1749860022840,2.3339384,106010.0,106000.0,0.01951667]
[1749860023036,2.3339384,106010.0,106000.0,0.01952111]
[1749860023242,2.3339384,106010.0,106000.0,0.01954082]
[1749860023437,3.1493384,106010.0,106000.0,0.01954683]
[1749860023638,3.1493384,106010.0,106000.0,0.002]
[1749860024040,3.1493384,106010.0,106000.0,0.01539363]
[1749860024236,3.1493384,106010.0,106000.0,0.002]
[1749860024440,3.1493384,106010.0,106000.0,0.01539374]
[1749860024638,3.1493384,106010.0,106000.0,0.002]
[1749860025045,3.1493384,106010.0,106000.0,0.01539394]
[1749860025740,3.1493384,106010.0,106000.0,0.002]
[1749860025939,3.1493384,106010.0,106000.0,0.01537852]
[1749860026241,3.1493384,106010.0,106000.0,0.002]
[1749860026449,3.1493384,106010.0,106000.0,0.01538917]
[1749860026946,3.1493384,106010.0,106000.0,0.05930853]
[1749860027246,3.1491384,106010.0,106000.0,0.0459403]
[1749860027444,3.1491384,106010.0,106000.0,0.09159851]
[1749860027643,3.1492984,106010.0,106000.0,0.0782403]
[1749860027849,3.1492984,106010.0,106000.0,0.09159725]
[1749860028147,3.1492984,106010.0,106000.0,0.09159661]
[1749860028350,3.1492984,106010.0,106000.0,0.09159662]
[1749860028648,3.1492984,106010.0,106000.0,0.09573497]
[1749860028847,3.1492984,106010.0,106000.0,0.09573496]
[1749860029047,3.1492984,106010.0,106000.0,0.28433101]
[1749860029243,3.1492984,106010.0,106000.0,0.08237865]
[1749860029450,3.26717979,106010.0,106000.0,0.08237865]
[1749860029648,3.26717979,106010.0,106000.0,0.09572824]
[1749860029851,3.26717979,106010.0,106000.0,0.11040811]
[1749860030052,2.38217979,106010.0,106000.0,0.29900431]
[1749860030247,3.0513384,106010.0,106000.0,0.34965467]
[1749860030445,3.16921979,106010.0,106000.0,0.3629984]
[1749860030641,3.16921979,106010.0,106000.0,0.34831859]
[1749860030950,3.19935979,106010.0,106000.0,0.36299789]
[1749860031248,3.23185979,106010.0,106000.0,0.36299771]
[1749860031451,3.23185979,106010.0,106000.0,0.36297395]
[1749860031653,0.9016,106010.0,106000.0,0.33171948]
[1749860031854,1.69768,106010.0,106000.0,0.34817645]
[1749860032354,1.69768,106010.0,106000.0,0.34812434]
[1749860032759,1.8862584,106010.0,106000.0,0.33497485]
[1749860032951,1.8862584,106010.0,106000.0,0.6465262]
[1749860033256,1.50892,106010.0,106000.0,0.64652872]
[1749860033457,1.50892,106010.0,106000.0,0.63337485]
[1749860033758,1.50892,106010.0,106000.0,0.64652731]
[1749860034056,1.6974984,106010.0,106000.0,0.64652849]
[1749860034450,1.6974984,106010.0,106000.0,0.64655049]
[1749860034649,1.6974984,106010.0,106000.0,0.64653782]
[1749860034855,1.6974984,106010.0,106000.0,0.63337485]
[1749860035053,1.6974984,106010.0,106000.0,0.64652442]
[1749860035249,1.6974984,106010.0,106000.0,0.63337485]
[1749860035456,1.6974984,106010.0,106000.0,0.64649998]
[1749860035657,1.6974984,106010.0,106000.0,0.63337485]
[1749860036258,1.6974984,106010.0,106000.0,0.64649759]
[1749860036458,1.6974984,106010.0,106000.0,0.6464579]
[1749860036657,1.6974984,106010.0,106000.0,0.64645779]
[1749860036863,1.6974984,106010.0,106000.0,0.63337485]
[1749860037066,1.6974984,106010.0,106000.0,0.6464578]
[1749860037366,0.7216,106010.0,106000.0,0.64645779]
[1749860037670,1.69668,106010.0,106000.0,0.63337485]
[1749860038969,1.69668,106010.0,106000.0,0.64673181]
[1749860039161,1.69668,106010.0,106000.0,0.63337485]
[1749860039464,0.7216,106010.0,106000.0,0.83489184]
[1749860039666,0.7216,106010.0,106000.0,0.83489243]
[1749860039864,0.7216,106010.0,106000.0,0.83491312]
[1749860040064,0.7216,106010.0,106000.0,0.83491261]
[1749860040262,0.3608,106010.0,106000.0,0.83491249]
[1749860040468,0.37952614,106020.0,106010.0,0.1885785]
[1749860040667,0.42915094,106020.0,106010.0,0.3390633]
[1749860040862,0.42915094,106020.0,106010.0,0.33904832]
[1749860041168,0.42915094,106020.0,106010.0,0.33904518]
[1749860041367,0.42915094,106020.0,106010.0,0.33904834]
[1749860041562,0.61871154,106020.0,106010.0,0.33904837]
[1749860041769,0.43115094,106020.0,106010.0,0.33905089]
[1749860041970,1.40487094,106020.0,106010.0,0.33904708]
[1749860042268,1.40487094,106020.0,106010.0,0.33905023]
[1749860042469,1.40487094,106020.0,106010.0,0.3258188]
[1749860042669,1.40487094,106020.0,106010.0,0.33905022]
[1749860043070,1.40487094,106020.0,106010.0,0.33905021]
[1749860043272,1.40487094,106020.0,106010.0,0.3258188]
[1749860043471,0.43115094,106020.0,106010.0,0.3258188]
[1749860043769,0.38115094,106020.0,106010.0,0.33904464]
[1749860044072,0.38115094,106020.0,106010.0,0.63741873]
[1749860044569,0.38115094,106020.0,106010.0,0.6242188]
[1749860044767,0.38115094,106020.0,106010.0,0.63734048]
[1749860045270,0.38115094,106020.0,106010.0,0.68299762]
[1749860045970,0.38115094,106020.0,106010.0,0.68713597]
[1749860046170,0.37915094,106020.0,106010.0,0.68913597]
[1749860046472,0.37915094,106020.0,106010.0,0.63035715]
[1749860060483,0.37915094,106020.0,106010.0,0.78767715]
[1749860060686,0.47425094,106020.0,106010.0,0.78767715]
[1749860061385,0.47425094,106020.0,106010.0,0.81425597]
[1749860061888,0.45604185,106020.0,106010.0,0.81425597]
[1749860062080,0.45604185,106020.0,106010.0,0.83109935]
[1749860062480,0.45604185,106020.0,106010.0,0.8163595]
[1749860062682,0.45604185,106020.0,106010.0,0.7860595]
[1749860063177,0.45604185,106020.0,106010.0,0.84483832]
[1749860064276,0.95460235,106020.0,106010.0,0.65671832]
[1749860064480,0.95460235,106020.0,106010.0,0.53705715]
[1749860064680,0.95460235,106020.0,106010.0,0.55016361]
[1749860065184,0.95460235,106020.0,106010.0,0.53705715]
[1749860065185,1.14272235,106020.0,106010.0,0.53705715]
[1749860065386,1.14272235,106020.0,106010.0,0.55027283]
[1749860065581,1.14272235,106020.0,106010.0,0.53705715]
[1749860065887,1.14472235,106020.0,106010.0,0.54928944]
[1749860066086,1.14476235,106020.0,106010.0,0.54929545]
[1749860066288,1.14476235,106020.0,106010.0,0.53605715]
[1749860066491,1.14476235,106020.0,106010.0,0.54929852]
[1749860066781,1.14476235,106020.0,106010.0,0.25089977]
[1749860066975,1.21476235,106020.0,106010.0,0.25090421]
[1749860067182,1.21476235,106020.0,106010.0,0.25090419]
[1749860067383,0.51804185,106020.0,106010.0,0.23765715]
[1749860067581,0.51804185,106020.0,106010.0,0.44133055]
[1749860067582,0.45804185,106020.0,106010.0,0.44133055]
[1749860068783,0.45804185,106020.0,106010.0,0.45445348]
[1749860068984,0.45804185,106020.0,106010.0,0.44133055]
[1749860069184,0.45804185,106020.0,106010.0,0.4544538]
[1749860069490,0.45804185,106020.0,106010.0,0.49849217]
[1749860069687,0.45804185,106020.0,106010.0,0.44133055]
[1749860070096,0.45804185,106020.0,106010.0,0.45445308]
[1749860070388,0.78804185,106020.0,106010.0,0.45451135]
[1749860070593,0.78804185,106020.0,106010.0,0.44133055]
[1749860071090,0.45804185,106020.0,106010.0,0.45452844]
[1749860071292,0.45804185,106020.0,106010.0,0.45449874]
[1749860071489,0.45804185,106020.0,106010.0,0.44133055]
[1749860071691,0.45804185,106020.0,106010.0,0.45448219]
[1749860071893,0.45804185,106020.0,106010.0,0.45448049]
[1749860072093,0.45804185,106020.0,106010.0,0.44133055]
[1749860072290,0.45804185,106020.0,106010.0,0.45447879]
[1749860072497,0.45804185,106020.0,106010.0,0.44133055]
[1749860072689,0.45804185,106020.0,106010.0,0.45447878]
[1749860072889,0.45804185,106020.0,106010.0,0.4544705]
[1749860073091,0.45804185,106020.0,106010.0,0.45447887]
[1749860073395,0.45804185,106020.0,106010.0,0.44133055]
[1749860073396,0.64660235,106020.0,106010.0,0.44133055]
[1749860073590,0.64660235,106020.0,106010.0,0.45447882]
[1749860073890,0.64660235,106020.0,106010.0,0.44133055]
[1749860074097,0.64660235,106020.0,106010.0,0.45447879]
[1749860074287,0.64660235,106020.0,106010.0,0.45447883]
[1749860074489,0.45804185,106020.0,106010.0,0.44133055]
[1749860074688,0.64660235,106020.0,106010.0,0.4544727]
[1749860074887,0.64660235,106020.0,106010.0,0.45447993]
[1749860075096,0.64660235,106020.0,106010.0,0.45448142]
[1749860075296,0.45804185,106020.0,106010.0,0.45447962]
[1749860075596,0.45804185,106020.0,106010.0,0.44133055]
[1749860075794,0.45804185,106020.0,106010.0,0.45445337]
[1749860075990,0.45804185,106020.0,106010.0,0.44133055]
[1749860076193,0.45804185,106020.0,106010.0,0.4544576]
[1749860076392,0.45804185,106020.0,106010.0,0.45447301]
[1749860076691,0.45804185,106020.0,106010.0,0.45445946]
[1749860076891,0.45804185,106020.0,106010.0,0.44133055]
[1749860077094,0.45804185,106020.0,106010.0,0.45446876]
[1749860077289,0.64660235,106020.0,106010.0,0.75285876]
[1749860077490,0.45804185,106020.0,106010.0,0.75284625]
[1749860077798,0.45804185,106020.0,106010.0,0.75286423]
[1749860077996,0.45804185,106020.0,106010.0,0.75287295]
[1749860078196,0.45804185,106020.0,106010.0,0.7528743]
[1749860078397,0.45804185,106020.0,106010.0,0.75286427]
[1749860079198,0.45804185,106020.0,106010.0,0.73973055]
[1749860079394,0.45804185,106020.0,106010.0,0.75287454]
[1749860079898,0.45804185,106020.0,106010.0,0.75287784]
[1749860080099,0.45804185,106020.0,106010.0,0.73973055]
[1749860080399,0.45804185,106020.0,106010.0,0.75289659]
[1749860080802,0.45804185,106020.0,106010.0,0.7528881]
[1749860081101,0.45804185,106020.0,106010.0,0.75287791]
[1749860081300,0.45804185,106020.0,106010.0,0.75288349]
[1749860081503,0.45804185,106020.0,106010.0,0.75289866]
[1749860081804,0.45804185,106020.0,106010.0,0.75290301]
[1749860082099,0.45804185,106020.0,106010.0,0.73973055]
[1749860082504,0.45804185,106020.0,106010.0,0.7528954]
[1749860082803,0.45804185,106020.0,106010.0,0.75290047]
[1749860083098,0.45804185,106020.0,106010.0,0.75289847]
[1749860083308,0.45804185,106020.0,106010.0,0.75288818]
[1749860083603,0.45804185,106020.0,106010.0,0.73973055]
[1749860084103,0.45804185,106020.0,106010.0,0.75291165]
[1749860084506,0.45804185,106020.0,106010.0,0.75291874]
[1749860085003,0.45804185,106020.0,106010.0,0.75293779]
[1749860085204,0.45804185,106020.0,106010.0,0.73973055]
[1749860085404,0.64660235,106020.0,106010.0,0.75292011]
[1749860085597,0.64660235,106020.0,106010.0,0.73973055]
[1749860085791,0.45804185,106020.0,106010.0,0.73973055]
[1749860086002,0.45804185,106020.0,106010.0,0.72285715]
[1749860086203,0.45804185,106020.0,106010.0,0.73604254]
[1749860086499,0.45804185,106020.0,106010.0,0.72285715]
[1749860087107,0.45804185,106020.0,106010.0,0.73602781]
[1749860087606,0.45804185,106020.0,106010.0,0.73603479]
[1749860088402,0.45804185,106020.0,106010.0,0.72285715]
[1749860088610,0.45804185,106020.0,106010.0,0.73603632]
[1749860088806,0.45804185,106020.0,106010.0,0.7661334]
[1749860089010,0.36294185,106020.0,106010.0,0.49962123]
[1749860089204,0.36294185,106020.0,106010.0,0.532007]
[1749860089399,0.36294185,106020.0,106010.0,0.53550457]
[1749860089611,0.36294185,106020.0,106010.0,0.54863725]
[1749860089911,0.36294185,106020.0,106010.0,0.53550457]
[1749860090107,0.36294185,106020.0,106010.0,0.54863273]
[1749860090307,0.36294185,106020.0,106010.0,0.55024636]
[1749860090507,0.36294185,106020.0,106010.0,0.56336646]
[1749860090808,0.36294185,106020.0,106010.0,0.56336118]
[1749860091112,0.36294185,106020.0,106010.0,0.54861748]
[1749860091301,0.36294185,106020.0,106010.0,0.60740723]
[1749860091500,0.36294185,106020.0,106010.0,0.6074074]
[1749860091710,0.36294185,106020.0,106010.0,0.56338084]
[1749860091903,0.36294185,106020.0,106010.0,0.5633834]
[1749860092108,0.36294185,106020.0,106010.0,0.60742237]
[1749860092311,0.36294185,106020.0,106010.0,0.53550457]
[1749860092522,0.36294185,106020.0,106010.0,0.60742016]
[1749860092722,0.36294185,106020.0,106010.0,0.60741986]
[1749860092923,0.36294185,106020.0,106010.0,0.60741987]
[1749860093125,0.55150235,106020.0,106010.0,0.59267803]
[1749860093526,0.36294185,106020.0,106010.0,0.60742228]
[1749860093719,0.36294185,106020.0,106010.0,0.6074174]
[1749860093920,0.36294185,106020.0,106010.0,0.59428538]
[1749860094115,0.36294185,106020.0,106010.0,0.60740612]
[1749860094521,0.36294185,106020.0,106010.0,0.59428527]
[1749860094826,0.36294185,106020.0,106010.0,0.57954354]
[1749860095030,0.36294185,106020.0,106010.0,0.60738839]
[1749860095430,0.36294185,106020.0,106010.0,0.60739034]
[1749860095631,0.36294185,106020.0,106010.0,0.60738938]
[1749860095832,0.36294185,106020.0,106010.0,0.60738854]
[1749860096232,0.36294185,106020.0,106010.0,0.59264606]
[1749860096434,0.36294185,106020.0,106010.0,0.60738781]
[1749860096622,0.36294185,106020.0,106010.0,0.59428529]
[1749860096826,0.36294185,106020.0,106010.0,0.59264604]
[1749860097026,0.36294185,106020.0,106010.0,0.59265206]
[1749860097222,0.36294185,106020.0,106010.0,0.59264605]
[1749860097632,0.36294185,106020.0,106010.0,0.59264606]
[1749860097833,0.36294185,106020.0,106010.0,0.6073878]